bitfinex-derivatives/quotes_BNBF0:USTF0_20250529
["timestamp","ask_amount","ask_price","bid_price","bid_amount"]
[1748515620037,1.01197222,685.32,684.35,1.03394275]
[1748515620235,1.01197222,685.32,684.13,0.29234209]
[1748515620236,1.01197224,685.31,684.36,0.46445209]
[1748515620435,1.01197256,685.3,684.36,0.46445209]
[1748515620635,1.01046716,685.33,684.37,0.56949069]
[1748515620840,1.01046716,685.33,684.36,0.46445209]
[1748515621339,1.01046716,685.33,684.26,0.46445209]
[1748515621535,1.01046716,685.33,684.27,0.56949065]
[1748515621739,1.01189685,685.32,684.28,0.56944643]
[1748515621941,1.01189685,685.31,684.29,0.56944643]
[1748515622136,1.01046716,685.33,684.3,0.56945096]
[1748515622339,1.01188293,685.32,684.31,0.56945095]
[1748515622535,1.01188293,685.31,684.32,0.56945095]
[1748515622739,1.01046716,685.33,684.23,0.46445209]
[1748515622933,1.01188104,685.32,684.24,0.5694526]
[1748515623137,1.01046716,685.33,684.23,0.75675146]
[1748515623441,1.01046716,685.33,684.24,0.56945167]
[1748515623640,1.01187891,685.32,684.23,0.75675146]
[1748515623843,1.01046716,685.33,684.23,0.29229937]
[1748515624442,1.01046716,685.33,684.24,0.5694635]
[1748515624637,1.01046716,685.33,684.25,0.56946349]
[1748515624842,1.01046716,685.33,684.26,0.56946359]
[1748515625043,1.01046716,685.33,684.23,0.29229937]
[1748515625836,1.01197947,685.32,684.24,0.56946811]
[1748515626142,1.01046716,685.33,684.25,0.56946811]
[1748515626143,1.01197947,685.31,684.25,0.56946811]
[1748515626343,1.01197947,685.3,684.26,0.56946811]
[1748515626540,1.01194623,685.29,684.27,0.56945581]
[1748515626743,1.01194623,685.28,684.28,0.56945581]
[1748515626943,1.01208403,685.27,684.29,0.5694559]
[1748515627144,1.01208403,685.27,684.23,0.29229937]
[1748515627145,1.01210455,685.26,684.3,0.5694559]
[1748515627344,1.01210455,685.25,684.31,0.5694559]
[1748515627536,0.25405725,685.71,684.23,0.29229937]
[1748515627537,1.01210455,685.24,684.23,0.29229937]
[1748515627744,1.01239154,685.23,684.24,0.5694559]
[1748515627945,1.01239154,685.22,684.25,0.5694559]
[1748515628244,0.25405725,685.71,684.26,0.5694559]
[1748515628446,1.30405276,685.7,684.27,0.56944118]
[1748515628640,1.304037,685.69,684.28,0.56943522]
[1748515628841,1.30406011,685.68,684.29,0.56942658]
[1748515629038,1.30406433,685.67,684.23,0.29229937]
[1748515629244,1.30404449,685.66,684.24,0.56943522]
[1748515629444,1.30404875,685.65,684.25,0.56943522]
[1748515629645,0.25405725,685.71,684.26,0.56943522]
[1748515629646,1.304053,685.64,684.26,0.56943522]
[1748515629841,1.30405726,685.63,684.27,0.56943522]
[1748515630048,1.30406151,685.62,684.28,0.56943522]
[1748515630241,0.29171103,685.61,684.23,0.29229937]
[1748515630444,1.01238392,685.6,684.24,0.56941074]
[1748515630642,0.29171954,685.59,684.25,0.56938428]
[1748515630945,1.01232375,685.58,684.26,0.56937846]
[1748515631142,1.01232309,685.57,684.23,0.29229937]
[1748515631443,1.01232739,685.56,684.24,0.56937845]
[1748515631743,1.01232739,685.55,684.25,0.56937896]
[1748515631942,1.01232739,685.54,684.26,0.56937896]
[1748515632143,1.01232739,685.53,684.27,0.56937896]
[1748515632343,1.01232739,685.52,684.28,0.56937891]
[1748515632546,1.01232348,685.51,684.29,0.56937879]
[1748515632751,0.29172379,685.58,684.3,0.56937879]
[1748515632952,1.01233299,685.57,684.31,0.56938557]
[1748515633151,1.01233266,685.56,684.32,0.56938529]
[1748515633351,1.01233266,685.55,684.33,0.56938529]
[1748515633548,1.01233266,685.54,684.34,0.56938529]
[1748515633748,1.01233266,685.53,684.35,0.56938529]
[1748515633953,1.01233266,685.52,684.36,0.56938529]
[1748515634149,0.29172379,685.58,684.37,0.56938529]
[1748515634455,0.29172379,685.58,684.56,0.46445209]
[1748515634649,0.29172379,685.58,684.57,0.56938522]
[1748515634850,0.29172379,685.58,684.56,0.46445209]
[1748515635050,1.01229858,685.57,684.56,0.46445209]
[1748515635254,0.29172379,685.58,684.57,0.5693845]
[1748515635456,0.29172379,685.58,684.57,0.46445209]
[1748515635753,0.29172379,685.58,684.51,0.46445209]
[1748515636157,1.01229175,685.57,684.52,0.56938578]
[1748515636349,1.01229175,685.56,684.53,0.56938578]
[1748515636556,1.01229636,685.55,684.54,0.56939001]
[1748515636756,1.01229636,685.54,684.48,0.46445209]
[1748515637056,1.01229944,685.53,684.49,0.5693894]
[1748515637255,0.29172379,685.58,684.48,0.46445209]
[1748515637555,0.29172379,685.58,684.23,0.29229937]
[1748515637556,0.29172379,685.58,684.49,0.46445209]
[1748515638050,1.01230496,685.57,684.5,0.56938899]
[1748515638254,1.01230496,685.56,684.49,0.46445209]
[1748515638455,0.29172379,685.58,684.49,0.46445209]
[1748515639057,0.29172379,685.58,684.5,0.5693879]
[1748515639253,1.01230996,685.57,684.32,0.46445209]
[1748515639455,0.29172379,685.58,684.33,0.56938824]
[1748515639659,0.29172379,685.58,684.32,0.46445209]
[1748515640458,0.29172379,685.58,684.33,0.46445209]
[1748515640660,1.01231438,685.57,684.25,0.46445209]
[1748515640862,0.29172379,685.58,684.24,0.46445209]
[1748515641761,0.29172379,685.58,684.26,0.46445209]
[1748515641762,1.01231143,685.57,684.26,0.46445209]
[1748515642056,0.29172379,685.58,684.26,0.46445209]
[1748515642461,1.01232368,685.57,684.27,0.56938689]
[1748515642657,0.29172379,685.58,684.28,0.56938698]
[1748515642658,1.0123267,685.56,684.28,0.56938698]
[1748515642857,0.29172379,685.58,684.27,0.46445209]
[1748515643561,0.29172379,685.58,684.28,0.46445209]
[1748515643959,1.01232236,685.57,684.29,0.56938693]
[1748515644162,0.29172379,685.58,684.28,0.46445209]
[1748515644562,0.29172379,685.58,684.26,0.46445209]
[1748515644765,0.29172379,685.58,684.26,0.29228655]
[1748515644963,1.01238317,685.57,684.26,0.75673864]
[1748515645162,0.29172379,685.58,684.26,0.75673864]
[1748515645359,1.01252211,685.57,684.26,0.75673864]
[1748515645558,0.29172379,685.58,684.27,0.46445209]
[1748515645765,1.01251411,685.57,684.28,0.46445209]
[1748515646064,0.29172379,685.58,684.29,0.56937378]
[1748515646259,1.01253925,685.57,684.29,0.46445209]
[1748515646460,1.01252552,685.56,684.29,0.46445209]
[1748515646660,1.01252623,685.55,684.31,0.46445209]
[1748515646858,0.29172379,685.58,684.31,0.46445209]
[1748515647061,0.29172379,685.58,684.41,0.46445209]
[1748515647260,0.29172379,685.58,684.42,1.03381801]
[1748515647559,0.29172379,685.58,684.42,0.46445209]
[1748515647765,0.29172379,685.58,684.44,0.46445209]
[1748515648064,1.01251446,685.57,684.44,0.46445209]
[1748515648266,0.29172379,685.58,684.44,0.46445209]
[1748515648467,1.01251468,685.57,684.45,0.5693602]
[1748515648663,1.0125395,685.56,684.48,0.46445209]
[1748515648966,1.0125395,685.55,684.63,0.46445209]
[1748515649167,1.0125395,685.54,684.64,0.5693602]
[1748515649362,1.01258183,685.53,684.65,0.56937083]
[1748515649564,1.01258187,685.52,684.66,0.56937083]
[1748515649765,1.01258187,685.51,684.67,0.56937132]
[1748515649964,1.01258187,685.5,684.68,0.56937132]
[1748515650162,1.01258187,685.49,684.69,0.56937132]
[1748515650370,1.01258187,685.48,684.7,0.56937132]
[1748515650667,1.01258187,685.47,684.71,0.56937132]
[1748515650869,1.01261657,685.46,684.72,0.56938362]
[1748515651067,1.01261657,685.45,684.73,0.56938362]
[1748515651266,0.29172379,685.58,684.66,0.46445209]
[1748515651565,1.01261608,685.57,684.67,1.03383546]
[1748515651763,0.29172379,685.58,684.68,0.56938333]
[1748515651764,1.0126162,685.56,684.68,0.56938333]
[1748515651967,1.0126162,685.55,684.69,0.56938333]
[1748515652268,1.0126162,685.54,684.7,0.56938333]
[1748515652469,1.0126162,685.53,684.71,0.56938333]
[1748515652664,1.0126162,685.52,684.72,0.56938333]
[1748515652968,0.29172379,685.58,684.68,0.46445209]
[1748515652969,1.01263368,685.51,684.73,0.56940025]
[1748515653169,1.01263368,685.5,684.68,0.46445209]
[1748515653468,0.29172379,685.58,684.7,0.46445209]
[1748515653970,0.29172379,685.58,684.71,0.631]
[1748515654168,1.01262982,685.57,684.71,0.631]
[1748515654368,1.01261581,685.56,684.71,0.631]
[1748515654565,0.29172379,685.58,684.72,0.46445209]
[1748515654869,0.29172379,685.58,684.73,0.56939831]
[1748515655068,1.01262728,685.57,684.73,0.56939831]
[1748515655269,0.29172379,685.58,684.73,0.56939831]
[1748515655470,1.0126629,685.57,684.74,0.56941126]
[1748515655666,1.0126629,685.56,684.75,0.56941126]
[1748515655967,1.01298023,685.55,684.76,0.56941126]
[1748515656267,1.01299128,685.54,684.77,0.56941142]
[1748515656467,1.01307153,685.53,684.78,0.56943236]
[1748515656771,1.01315921,685.52,684.79,0.569455]
[1748515656971,1.01315646,685.51,684.8,0.569455]
[1748515657169,1.01315646,685.5,684.81,0.569455]
[1748515657368,1.01315646,685.49,684.82,0.569455]
[1748515657574,0.29172379,685.58,684.83,0.5694548]
[1748515657770,1.01336462,685.57,684.84,0.5694548]
[1748515657975,1.01343174,685.56,684.85,0.56951675]
[1748515658179,1.01343854,685.55,684.86,0.56951727]
[1748515658373,1.01343854,685.54,684.87,0.56951727]
[1748515658573,1.01343854,685.53,684.88,0.56951727]
[1748515658876,0.29172379,685.58,684.89,0.56951727]
[1748515658877,1.01343854,685.52,684.89,0.56951727]
[1748515659076,1.01343854,685.51,684.9,0.56951727]
[1748515659373,1.01343698,685.5,684.73,0.56939831]
[1748515659577,0.29172379,685.58,684.74,0.56951675]
[1748515659779,1.01352075,685.57,684.75,0.56956605]
[1748515659978,0.29172379,685.58,684.76,0.56956605]
[1748515660180,1.01352024,685.57,684.77,0.56956628]
[1748515660480,0.29172379,685.58,684.78,0.56956628]
[1748515660680,0.29172379,685.58,684.79,0.56963384]
[1748515660873,1.01363283,685.57,684.73,0.56939831]
[1748515661076,0.29172379,685.58,684.73,0.56939831]
[1748515661276,0.29172379,685.58,684.74,0.56963468]
[1748515661580,0.29172379,685.58,684.73,0.56939831]
[1748515661581,1.01364255,685.57,684.75,0.56966885]
[1748515661777,1.01364255,685.57,684.73,0.56939831]
[1748515661778,1.01364255,685.56,684.76,0.56966901]
[1748515661978,1.01364255,685.56,684.73,0.56939831]
[1748515661979,1.01367796,685.55,684.77,0.56966901]
[1748515662179,1.01368319,685.54,684.78,0.56967012]
[1748515662379,0.29172379,685.58,684.79,0.56967003]
[1748515662380,1.01367737,685.53,684.79,0.56967003]
[1748515662581,1.01367733,685.52,684.8,0.5697474]
[1748515662778,1.01367733,685.51,684.81,0.5697474]
[1748515662984,1.01367733,685.5,684.82,0.5697474]
[1748515663182,1.01367733,685.49,684.83,0.5697474]
[1748515663482,1.01367733,685.48,684.84,0.5697474]
[1748515663679,1.01367733,685.47,684.85,0.5697474]
[1748515663978,0.29172379,685.58,684.73,0.56939831]
[1748515664379,1.01412552,685.57,684.74,0.56992799]
[1748515664580,0.29172379,685.58,684.73,0.56939831]
[1748515664983,1.01443458,685.57,684.73,0.56939831]
[1748515665177,0.29172379,685.58,684.73,0.56939831]
[1748515665579,1.01442881,685.57,684.74,0.57007041]
[1748515665784,0.29172379,685.58,684.75,0.57007042]
[1748515665980,0.29172379,685.58,684.73,0.56939831]
[1748515666484,0.29172379,685.58,684.74,0.57026107]
[1748515666686,0.29172379,685.58,684.75,0.5702608]
[1748515666886,0.29172379,685.58,684.73,0.56939831]
[1748515667383,0.29172379,685.58,684.74,0.57026015]
[1748515667581,0.29172379,685.58,684.73,0.56939831]
[1748515668082,1.01535776,685.57,684.73,0.56939831]
[1748515668289,0.29172379,685.58,684.73,0.56939831]
[1748515668690,1.0163629,685.57,684.73,0.56939831]
[1748515668885,0.29172379,685.58,684.73,0.56939831]
[1748515669590,1.0165294,685.57,684.73,0.56939831]
[1748515669784,0.29172379,685.58,684.73,0.56939831]
[1748515669985,0.29172379,685.58,684.74,0.57112181]
[1748515670187,0.29172379,685.58,684.73,0.56939831]
[1748515670388,1.01654892,685.57,684.73,0.56939831]
[1748515670587,0.29172379,685.58,684.73,0.56939831]
[1748515670786,0.29172379,685.58,684.74,0.57112181]
[1748515670985,0.29172379,685.58,684.73,0.56939831]
[1748515671187,0.29172379,685.58,684.74,0.57112129]
[1748515671386,0.29172379,685.58,684.73,0.56939831]
[1748515671987,1.01663888,685.57,684.73,0.56939831]
[1748515672293,0.29172379,685.58,684.74,0.57112181]
[1748515672488,0.29172379,685.58,684.73,0.56939831]
[1748515672789,0.29172379,685.58,684.74,0.57112154]
[1748515672991,0.29172379,685.58,684.73,0.56939831]
[1748515673591,0.29172379,685.58,684.74,0.57112145]
[1748515673788,0.29172379,685.58,684.75,0.57112145]
[1748515673992,0.29172379,685.58,684.73,0.56939831]
[1748515674192,0.29172379,685.58,684.74,0.57112233]
[1748515674591,1.01673893,685.57,684.74,0.57112233]
[1748515674792,0.29172379,685.58,684.74,0.57112233]
[1748515675194,1.01687813,685.57,684.75,0.57112221]
[1748515675394,0.29172379,685.58,684.76,0.57112154]
[1748515675596,0.29172379,685.58,684.74,0.57112233]
[1748515675997,1.01691732,685.57,684.75,0.571122]
[1748515676199,0.29172379,685.58,684.74,0.57112233]
[1748515676699,1.01693945,685.57,684.74,0.57112233]
[1748515676904,1.01693941,685.56,684.75,0.57116036]
[1748515677097,1.01691553,685.55,684.76,0.57116036]
[1748515677299,0.29172379,685.58,684.74,0.57112233]
[1748515678197,0.29172379,685.58,684.75,0.57118145]
[1748515678503,1.0170992,685.57,684.74,0.57112233]
[1748515678700,0.29172379,685.58,684.75,0.57127295]
[1748515678898,0.29172379,685.58,684.74,0.57112233]
[1748515679099,1.01709225,685.57,684.74,0.57112233]
[1748515679295,0.29172379,685.58,684.75,0.57127261]
[1748515679599,0.29172379,685.58,684.76,0.5713775]
[1748515679795,1.01732514,685.57,684.74,0.57112233]
[1748515679997,0.29172379,685.58,684.74,0.57112233]
[1748515680702,0.29172379,685.58,684.75,0.57137822]
[1748515681004,0.29172379,685.58,684.74,0.57112233]
[1748515682099,1.01715963,685.57,684.75,0.57137781]
[1748515682305,0.29172379,685.58,684.76,0.57137781]
[1748515682500,0.29172379,685.58,684.77,0.57137781]
[1748515682501,1.01726954,685.57,684.77,0.57137781]
[1748515682704,1.01728611,685.56,684.78,0.57137788]
[1748515683004,0.29172379,685.58,684.74,0.57112233]
[1748515684106,1.01750808,685.57,684.75,0.57138453]
[1748515684306,0.29172379,685.58,684.74,0.57112233]
[1748515684906,0.29172379,685.58,684.75,0.57138192]
[1748515685206,0.29172379,685.58,684.74,0.57112233]
[1748515686307,0.29172379,685.58,684.75,0.5713814]
[1748515686505,0.29172379,685.58,684.74,0.57112233]
[1748515687003,0.29172379,685.58,684.75,0.57137646]
[1748515687207,0.29172379,685.58,684.74,0.57112233]
[1748515687208,1.0182671,685.57,684.76,0.57137571]
[1748515687410,1.0182671,685.56,684.77,0.57137571]
[1748515687604,1.0182671,685.55,684.78,0.57137571]
[1748515687809,1.01802568,685.54,684.79,0.57137554]
[1748515688107,1.01810431,685.53,684.8,0.57139673]
[1748515688411,1.01810529,685.52,684.81,0.57136248]
[1748515688604,1.01816206,685.51,684.82,0.57138692]
[1748515688909,1.01816206,685.5,684.83,0.57138692]
[1748515689111,1.01816206,685.49,684.84,0.57138692]
[1748515689404,0.29172379,685.58,684.74,0.57112233]
[1748515689606,1.01719632,685.57,684.75,0.5707092]
[1748515689805,1.01719632,685.56,684.76,0.5707092]
[1748515690005,1.01714531,685.55,684.77,0.57068447]
[1748515690208,0.29172379,685.58,684.74,0.57112233]
[1748515690413,0.29172379,685.58,684.75,0.57068333]
[1748515690611,0.29172379,685.58,684.75,0.606]
[1748515690806,1.01709232,685.57,684.75,0.606]
[1748515691006,0.29172379,685.58,684.76,0.57065537]
[1748515691209,0.29172379,685.58,684.75,0.606]
[1748515691410,1.01685789,685.57,684.76,0.57065537]
[1748515691710,0.29172379,685.58,684.75,0.606]
[1748515693210,1.01681583,685.57,684.76,0.57063153]
[1748515693410,0.29172379,685.58,684.77,0.57063153]
[1748515693611,1.01682153,685.57,684.78,0.57063153]
[1748515693805,1.01682153,685.57,684.75,0.606]
[1748515693806,1.01682153,685.56,684.79,0.57063153]
[1748515694008,1.01682153,685.55,684.8,0.57063153]
[1748515694207,0.29172379,685.58,684.81,0.57017819]
[1748515694506,0.29172379,685.58,684.75,0.606]
[1748515694907,1.01621505,685.57,684.76,0.57017859]
[1748515695107,0.29172379,685.58,684.75,0.606]
[1748515695511,1.01630636,685.57,684.76,0.57017817]
[1748515695710,0.29172379,685.58,684.75,0.606]
[1748515695911,1.01630871,685.57,684.76,0.57017747]
[1748515696112,1.01636679,685.56,684.77,0.57015912]
[1748515696311,1.01632736,685.55,684.78,0.5701151]
[1748515696512,1.01633608,685.54,684.79,0.57011231]
[1748515696709,1.0154955,685.53,684.75,0.606]
[1748515696914,0.29172379,685.58,684.76,0.56965237]
[1748515697113,0.29172379,685.58,684.75,0.606]
[1748515697114,0.29172379,685.58,684.77,0.56965237]
[1748515697315,0.29172379,685.58,684.75,0.606]
[1748515697913,1.01553565,685.57,684.76,0.56963718]
[1748515698213,0.29172379,685.58,684.75,0.606]
[1748515698617,0.2539034,686.08,684.75,0.606]
[1748515698917,1.30738483,686.07,684.75,0.606]
[1748515699111,0.29151969,686.06,684.75,0.606]
[1748515699313,1.01587787,686.05,684.75,0.606]
[1748515699517,1.30740606,686.04,684.76,0.56958952]
[1748515699712,1.30737716,686.03,684.77,0.56875222]
[1748515699918,1.30737716,686.03,684.75,0.606]
[1748515699919,0.29153668,686.02,684.78,0.56875222]
[1748515700118,0.29153668,686.02,684.75,0.606]
[1748515700517,1.0160711,686.01,684.75,0.606]
[1748515700719,1.30761915,686.0,684.76,0.56875366]
[1748515700920,1.3076234,685.99,684.77,0.56875366]
[1748515701114,1.30762765,685.98,684.78,0.56875366]
[1748515701316,1.3076319,685.97,684.79,0.56875366]
[1748515701513,0.2539034,686.08,684.75,0.606]
[1748515701514,1.30610351,685.96,684.75,0.606]
[1748515701718,0.29156644,685.95,684.75,0.606]
[1748515702219,1.01454185,685.94,684.75,0.606]
[1748515702414,1.30611708,685.93,684.75,0.606]
[1748515702618,1.30610186,685.92,684.76,0.56810966]
[1748515702819,0.29158344,685.91,684.74,0.57112233]
[1748515703718,0.29158344,685.91,684.75,0.56810954]
[1748515703913,1.01462649,685.9,684.74,0.57112233]
[1748515704114,0.29159194,685.89,684.75,0.56810954]
[1748515704320,0.29159194,685.89,684.74,0.57112233]
[1748515704714,1.01474609,685.88,684.75,1.1701401]
[1748515704914,0.29159619,685.88,684.75,0.602]
[1748515705417,1.01478448,685.87,684.75,0.602]
[1748515705617,0.29160044,685.87,684.76,0.56814012]
[1748515705820,1.0147827,685.86,684.75,0.602]
[1748515706121,0.29160044,685.87,684.75,0.602]
[1748515706622,1.01485648,685.86,684.76,0.56814107]
[1748515706820,0.29160044,685.87,684.75,0.602]
[1748515707516,1.01464223,685.86,684.76,0.56814521]
[1748515707720,0.29160895,685.85,684.75,0.602]
[1748515708023,1.01468867,685.84,684.75,0.602]
[1748515708222,0.2916132,685.84,684.75,0.602]
[1748515708417,0.2916132,685.84,684.76,0.5681482]
[1748515708619,0.2916132,685.84,684.77,0.56814819]
[1748515708815,0.2916132,685.84,684.75,0.602]
[1748515709521,1.01475663,685.83,684.75,0.602]
[1748515709723,0.2916132,685.84,684.75,0.602]
[1748515710524,1.01459359,685.83,684.75,0.602]
[1748515710721,1.30621104,685.83,684.75,0.602]
[1748515710931,0.29161745,685.83,684.75,0.602]
[1748515711729,0.29161745,685.83,684.76,0.56799317]
[1748515711929,0.29161745,685.83,684.75,0.602]
[1748515712330,1.01496478,685.82,684.75,0.602]
[1748515712533,0.29161745,685.83,684.76,0.56791381]
[1748515712534,1.01480036,685.81,684.76,0.56791381]
[1748515712733,0.29161745,685.83,684.75,0.602]
[1748515713132,0.29161745,685.83,684.76,0.56791405]
[1748515713431,1.01507902,685.82,684.75,0.602]
[1748515713632,0.29161745,685.83,684.75,0.602]
[1748515713835,1.01518438,685.82,684.75,0.602]
[1748515714037,0.29161745,685.83,684.75,0.602]
[1748515714538,1.0152623,685.82,684.75,0.602]
[1748515714833,0.29161745,685.83,684.76,0.56790587]
[1748515715132,1.01528545,685.82,684.77,0.56790631]
[1748515715340,0.29161745,685.83,684.75,0.602]
[1748515716035,1.01535588,685.82,684.75,0.602]
[1748515716338,1.01576325,685.81,684.75,0.602]
[1748515716539,1.01561767,685.8,684.75,0.602]
[1748515716835,0.29161745,685.83,684.76,0.56782244]
[1748515717037,0.29161745,685.83,684.77,0.56782295]
[1748515717241,1.01570944,685.82,684.75,0.602]
[1748515717444,0.29161745,685.83,684.75,0.602]
[1748515717639,0.29161745,685.83,684.74,0.57112233]
[1748515718044,0.29161745,685.83,684.75,0.56773951]
[1748515718339,0.29161745,685.83,684.74,0.57112233]
[1748515719944,0.29161745,685.83,684.75,0.616]
[1748515720540,0.29161745,685.83,684.76,0.56773946]
[1748515720740,0.29161745,685.83,684.75,0.616]
[1748515721145,1.01534981,685.82,684.76,0.56773885]
[1748515721340,1.01534772,685.81,684.75,0.616]
[1748515721644,0.29161745,685.83,684.75,0.616]
[1748515721844,1.01519122,685.82,684.75,0.616]
[1748515722048,0.29161745,685.83,684.75,0.616]
[1748515722352,0.29161745,685.83,684.76,0.56767153]
[1748515722640,0.29161745,685.83,684.75,0.616]
[1748515723239,1.01570563,685.82,684.75,0.616]
[1748515723441,0.29161745,685.83,684.75,0.616]
[1748515723942,1.01606131,685.82,684.76,0.56784383]
[1748515724145,1.01605998,685.81,684.77,0.56784383]
[1748515724346,1.01605998,685.8,684.78,0.56784383]
[1748515724548,0.29161745,685.83,684.79,0.56799465]
[1748515724748,1.01587323,685.82,684.8,0.56799487]
[1748515724949,0.29161745,685.83,684.81,0.56799517]
[1748515725148,1.01587003,685.82,684.75,0.616]
[1748515725349,1.01586671,685.81,684.76,0.56799576]
[1748515725648,1.01586671,685.81,684.75,0.616]
[1748515725649,1.01586671,685.8,684.77,0.56799576]
[1748515725849,1.01586671,685.79,684.78,0.56799576]
[1748515726050,1.01586671,685.78,684.79,0.56799576]
[1748515726251,1.01586671,685.78,684.75,0.616]
[1748515726252,1.01591645,685.77,684.8,0.56796235]
[1748515726553,0.29161745,685.83,684.75,0.616]
[1748515726751,1.01601475,685.82,684.76,0.56806022]
[1748515727051,1.01600594,685.81,684.77,0.5680632]
[1748515727245,1.01600594,685.8,684.78,0.5680632]
[1748515727449,1.01600594,685.79,684.79,0.5680632]
[1748515727651,0.29161745,685.83,684.8,0.5680632]
[1748515727652,1.01600594,685.78,684.8,0.5680632]
[1748515727854,1.01572518,685.77,684.81,0.5680632]
[1748515728053,1.01571779,685.76,684.82,0.56751581]
[1748515728255,0.29161745,685.83,684.75,0.616]
[1748515728457,1.01573344,685.82,684.76,0.56751568]
[1748515728656,0.29161745,685.83,684.75,0.616]
[1748515730959,0.29161745,685.83,684.76,0.56752733]
[1748515731155,0.29161745,685.83,684.75,0.616]
[1748515731855,1.01582824,685.82,684.75,0.616]
[1748515732162,0.29161745,685.83,684.76,0.5675271]
[1748515732354,0.29161745,685.83,684.75,0.616]
[1748515732554,0.29161745,685.83,684.76,0.56752678]
[1748515732759,0.29161745,685.83,684.77,1.13505374]
[1748515732954,0.29161745,685.83,684.78,0.56752637]
[1748515733160,1.01585814,685.82,684.77,0.56752687]
[1748515733354,0.29161745,685.83,684.77,0.56752687]
[1748515733555,1.01589191,685.82,684.77,0.56752687]
[1748515733755,0.29161745,685.83,684.77,0.56752687]
[1748515734159,1.0159455,685.82,684.77,0.56752687]
[1748515734362,0.29161745,685.83,684.78,0.56752637]
[1748515734562,1.01613627,685.82,684.77,0.56752687]
[1748515734763,0.29161745,685.83,684.77,0.56752687]
[1748515735264,1.01628814,685.82,684.77,0.56752687]
[1748515735557,0.29161745,685.83,684.78,0.56752884]
[1748515735762,0.29161745,685.83,684.77,0.56752687]
[1748515736358,1.01609549,685.82,684.78,0.56755748]
[1748515736562,0.29162596,685.81,684.77,0.56752687]
[1748515736762,0.29162596,685.81,684.78,0.56756277]
[1748515736959,0.29162596,685.81,684.77,0.56752687]
[1748515737162,1.01622742,685.8,684.77,0.56752687]
[1748515737364,0.29163446,685.79,684.77,0.56752687]
[1748515737565,1.01600289,685.78,684.77,0.56752687]
[1748515737760,0.29163446,685.79,684.78,0.56756645]
[1748515737967,0.29163446,685.79,684.77,0.56752687]
[1748515738267,0.29163446,685.79,684.78,0.56756741]
[1748515738567,0.29163446,685.79,684.79,0.56756741]
[1748515738762,1.01579354,685.78,684.8,0.56756741]
[1748515738964,0.29163446,685.79,684.77,0.56752687]
[1748515739165,0.29163446,685.79,684.78,0.56756765]
[1748515739365,0.29163446,685.79,684.77,0.56752687]
[1748515739967,1.01573498,685.78,684.77,0.56752687]
[1748515740162,0.29164297,685.77,684.78,0.56758652]
[1748515740467,0.29164297,685.77,684.77,0.56752687]
[1748515741868,1.01574944,685.76,684.77,0.56752687]
[1748515742071,1.01575679,685.75,684.77,0.56752687]
[1748515742362,0.29164722,685.76,684.77,0.56752687]
[1748515742569,1.0157686,685.75,684.77,0.56752687]
[1748515742765,0.29164722,685.76,684.77,0.56752687]
[1748515742970,1.01706972,685.75,684.77,0.56752687]
[1748515743269,0.29164722,685.76,684.77,0.56752687]
[1748515743469,1.01706879,685.74,684.77,0.56752687]
[1748515743668,0.29164722,685.76,684.77,0.56752687]
[1748515744566,1.01705816,685.75,684.78,0.56829992]
[1748515744767,0.29164722,685.76,684.79,0.56829992]
[1748515744768,1.01705816,685.74,684.79,0.56829992]
[1748515744970,1.01705816,685.73,684.77,0.56752687]
[1748515745170,1.01704927,685.72,684.78,0.56830075]
[1748515745367,1.01704969,685.71,684.79,0.5683007]
[1748515745567,0.29164722,685.76,684.77,0.56752687]
[1748515746370,0.29164722,685.76,684.78,0.773]
[1748515746573,0.29164722,685.76,684.79,0.5683016]
[1748515746869,1.01650328,685.75,684.79,0.5683016]
[1748515747074,1.01650456,685.74,684.79,0.5683016]
[1748515747274,0.29164722,685.76,684.79,0.5683016]
[1748515747472,0.29164722,685.76,684.8,0.56830058]
[1748515747669,1.01648396,685.75,684.81,0.56830058]
[1748515747969,0.29164722,685.76,684.79,0.5683016]
[1748515748776,1.01621297,685.75,684.8,0.56830111]
[1748515749077,1.01621297,685.74,684.81,0.56830111]
[1748515749270,1.01621297,685.74,684.79,0.5683016]
[1748515749271,1.01621297,685.73,684.82,0.56830111]
[1748515749475,0.29164722,685.76,684.83,0.56830111]
[1748515749476,1.01621297,685.72,684.83,0.56830111]
[1748515749771,0.29164722,685.76,684.84,0.56842267]
[1748515749977,0.29164722,685.76,684.85,0.56842267]
[1748515750277,0.29164722,685.76,684.79,0.5683016]
[1748515751578,0.29164722,685.76,684.8,0.5684222]
[1748515751872,0.29164722,685.76,684.79,0.5683016]
[1748515752476,1.01680481,685.75,684.79,0.5683016]
[1748515752680,0.29164722,685.76,684.79,0.5683016]
[1748515753281,0.29164722,685.76,684.8,0.56842274]
[1748515753581,0.29164722,685.76,684.79,0.5683016]
[1748515755383,0.29164722,685.76,684.8,0.56837484]
[1748515755578,0.29164722,685.76,684.79,0.5683016]
[1748515755977,0.29164722,685.76,684.8,0.56837499]
[1748515756175,0.29164722,685.76,684.79,0.5683016]
[1748515757583,1.01540377,685.75,684.8,0.5681887]